[Event "*** Titled Tuesday Blitz"]
[Site "Chess.com"]
[Date "2020.04.28"]
[Round "2"]
[White "Dr-Bassem"]
[Black "claudyna16"]
[Result "1-0"]
[WhiteElo "2805"]
[BlackElo "2531"]
[TimeControl "180+1"]
[EndTime "10:18:09 PDT"]
[Termination "Dr-Bassem won by resignation"]

1. e4 {[%clk 0:03:00.9]} 1... e5 {[%clk 0:02:59.9]} 2. Nf3 {[%clk 0:03:00.6]}
2... Nc6 {[%clk 0:03:00.4]} 3. Bb5 {[%clk 0:03:00]} 3... a6 {[%clk 0:03:00.6]}
4. Ba4 {[%clk 0:03:00]} 4... d6 {[%clk 0:03:00.9]} 5. Bxc6+ {[%clk 0:02:54.4]}
5... bxc6 {[%clk 0:03:00.4]} 6. d4 {[%clk 0:02:55.1]} 6... exd4 {[%clk
0:02:52.1]} 7. Nxd4 {[%clk 0:02:56]} 7... c5 {[%clk 0:02:52.6]} 8. Nf3 {[%clk
0:02:55.2]} 8... Bb7 {[%clk 0:02:43.6]} 9. Nc3 {[%clk 0:02:53.9]} 9... g6 {[%clk
0:02:40.4]} 10. O-O {[%clk 0:02:50.1]} 10... Bg7 {[%clk 0:02:40.5]} 11. Re1
{[%clk 0:02:41.7]} 11... Ne7 {[%clk 0:02:39.7]} 12. Bf4 {[%clk 0:02:26.5]} 12...
O-O {[%clk 0:02:27.4]} 13. e5 {[%clk 0:02:25.2]} 13... d5 {[%clk 0:02:20]} 14.
Na4 {[%clk 0:02:15.9]} 14... c4 {[%clk 0:01:57.6]} 15. Nc5 {[%clk 0:02:15]}
15... Rb8 {[%clk 0:01:57.7]} 16. Bg5 {[%clk 0:01:53.4]} 16... h6 {[%clk
0:01:51.9]} 17. Nxb7 {[%clk 0:01:46.7]} 17... Rxb7 {[%clk 0:01:48.5]} 18. Bxe7
{[%clk 0:01:47.1]} 18... Qxe7 {[%clk 0:01:48.7]} 19. Qxd5 {[%clk 0:01:46.9]}
19... Rxb2 {[%clk 0:01:47.7]} 20. Qxc4 {[%clk 0:01:47.2]} 20... Qe6 {[%clk
0:01:19.3]} 21. Qa4 {[%clk 0:00:58.2]} 21... c5 {[%clk 0:01:13.1]} 22. a3 {[%clk
0:00:57.3]} 22... Rd8 {[%clk 0:01:02.4]} 23. h3 {[%clk 0:00:52.4]} 23... Rd5
{[%clk 0:00:42.8]} 24. Re3 {[%clk 0:00:38.6]} 24... g5 {[%clk 0:00:40.8]} 25.
Rae1 {[%clk 0:00:34.3]} 25... Rd8 {[%clk 0:00:28.6]} 26. h4 {[%clk 0:00:26.2]}
26... g4 {[%clk 0:00:27.7]} 27. Nh2 {[%clk 0:00:25.9]} 27... h5 {[%clk
0:00:27.9]} 28. Nf1 {[%clk 0:00:26.3]} 28... Qe7 {[%clk 0:00:27]} 29. g3 {[%clk
0:00:19.2]} 29... Qe6 {[%clk 0:00:27]} 30. Re4 {[%clk 0:00:16.9]} 30... Rbb8
{[%clk 0:00:23.3]} 31. Ne3 {[%clk 0:00:16.6]} 31... Bh6 {[%clk 0:00:22.8]} 32.
Nc4 {[%clk 0:00:14.5]} 32... Rd4 {[%clk 0:00:17.9]} 33. Rxd4 {[%clk 0:00:14]}
33... cxd4 {[%clk 0:00:18.8]} 34. Nd6 {[%clk 0:00:13.5]} 34... Qd5 {[%clk
0:00:14.1]} 35. Qxa6 {[%clk 0:00:10.7]} 35... Rd8 {[%clk 0:00:12.3]} 36. Qd3
{[%clk 0:00:09.9]} 36... Bg7 {[%clk 0:00:12.2]} 37. Nf5 {[%clk 0:00:09.2]} 37...
Bxe5 {[%clk 0:00:11.1]} 38. Ne7+ {[%clk 0:00:09.3]} 1-0

[Event "*** Titled Tuesday Blitz"]
[Site "Chess.com"]
[Date "2020.04.28"]
[Round "2"]
[White "Chichin_chao"]
[Black "HouseOfDurin"]
[Result "1-0"]
[WhiteElo "2385"]
[BlackElo "2066"]
[TimeControl "180+1"]
[EndTime "10:18:12 PDT"]
[Termination "Chichin_chao won on time"]

1. e4 {[%clk 0:03:00.9]} 1... c5 {[%clk 0:03:00]} 2. Nf3 {[%clk 0:03:01]} 2...
Nc6 {[%clk 0:03:00.5]} 3. Bb5 {[%clk 0:03:00.6]} 3... g6 {[%clk 0:03:00.1]} 4.
O-O {[%clk 0:03:00.1]} 4... Bg7 {[%clk 0:03:00.4]} 5. Re1 {[%clk 0:02:57.8]}
5... e5 {[%clk 0:02:58.8]} 6. d3 {[%clk 0:02:52.3]} 6... Nge7 {[%clk 0:02:57.8]}
7. a4 {[%clk 0:02:52.6]} 7... O-O {[%clk 0:02:54.4]} 8. Nc3 {[%clk 0:02:47.3]}
8... a6 {[%clk 0:02:38.7]} 9. Bc4 {[%clk 0:02:46.9]} 9... d6 {[%clk 0:02:38.1]}
10. h3 {[%clk 0:02:44.3]} 10... h6 {[%clk 0:02:33.4]} 11. Nh2 {[%clk 0:02:35.2]}
11... Kh7 {[%clk 0:02:32.8]} 12. f4 {[%clk 0:02:33.8]} 12... f5 {[%clk
0:02:31.6]} 13. fxe5 {[%clk 0:02:09.4]} 13... dxe5 {[%clk 0:02:31.3]} 14. Nd5
{[%clk 0:02:05.2]} 14... Be6 {[%clk 0:01:59.8]} 15. Nxe7 {[%clk 0:01:25.6]}
15... Qxe7 {[%clk 0:01:59.3]} 16. Bxe6 {[%clk 0:01:25.5]} 16... Qxe6 {[%clk
0:02:00.2]} 17. exf5 {[%clk 0:01:18]} 17... gxf5 {[%clk 0:02:01.1]} 18. Nf3
{[%clk 0:01:14.2]} 18... Rae8 {[%clk 0:01:51.5]} 19. Qe2 {[%clk 0:01:09.8]}
19... e4 {[%clk 0:01:43.6]} 20. c3 {[%clk 0:01:05.5]} 20... Qd7 {[%clk
0:00:47.8]} 21. dxe4 {[%clk 0:01:01.6]} 21... Rxe4 {[%clk 0:00:46]} 22. Qf1
{[%clk 0:00:57.9]} 22... Rfe8 {[%clk 0:00:40.5]} 23. Bd2 {[%clk 0:00:50.1]}
23... Ne5 {[%clk 0:00:27.5]} 24. Nxe5 {[%clk 0:00:34.5]} 24... R8xe5 {[%clk
0:00:16.6]} 25. Bf4 {[%clk 0:00:30.2]} 25... Rxe1 {[%clk 0:00:14.9]} 26. Rxe1
{[%clk 0:00:31.1]} 26... Rxe1 {[%clk 0:00:14.1]} 27. Qxe1 {[%clk 0:00:32]} 27...
Kg6 {[%clk 0:00:11.8]} 28. Qg3+ {[%clk 0:00:29.5]} 28... Kf7 {[%clk 0:00:12]}
29. Qf3 {[%clk 0:00:28.8]} 29... b5 {[%clk 0:00:10.2]} 30. axb5 {[%clk
0:00:27.2]} 30... axb5 {[%clk 0:00:11.1]} 31. Qh5+ {[%clk 0:00:26.9]} 31... Ke7
{[%clk 0:00:04.5]} 32. Qg6 {[%clk 0:00:24]} 32... Kd8 {[%clk 0:00:03.1]} 33.
Qb6+ {[%clk 0:00:22]} 33... Ke8 {[%clk 0:00:02.8]} 34. Qb8+ {[%clk 0:00:18.5]}
34... Kf7 {[%clk 0:00:02.5]} 35. Kh2 {[%clk 0:00:15.9]} 35... Qe7 {[%clk
0:00:01.6]} 36. Qc8 {[%clk 0:00:13.1]} 36... Kg6 {[%clk 0:00:01.2]} 37. Qc6+
{[%clk 0:00:13.2]} 37... Qf6 {[%clk 0:00:01.2]} 38. Qxc5 {[%clk 0:00:12]} 1-0

[Event "*** Titled Tuesday Blitz"]
[Site "Chess.com"]
[Date "2020.04.28"]
[Round "2"]
[White "Khayala13"]
[Black "Y0ung_Capablanca"]
[Result "0-1"]
[WhiteElo "2320"]
[BlackElo "2657"]
[TimeControl "180+1"]
[EndTime "10:18:14 PDT"]
[Termination "Y0ung_Capablanca won on time"]

1. e4 {[%clk 0:03:00.9]} 1... c6 {[%clk 0:02:59.4]} 2. d4 {[%clk 0:03:00.6]}
2... d5 {[%clk 0:03:00.3]} 3. Nc3 {[%clk 0:03:00]} 3... dxe4 {[%clk 0:03:00.1]}
4. Nxe4 {[%clk 0:02:58.5]} 4... Bf5 {[%clk 0:02:58.6]} 5. Ng3 {[%clk 0:02:58.5]}
5... Bg6 {[%clk 0:02:58.8]} 6. N1e2 {[%clk 0:02:58.6]} 6... e6 {[%clk
0:02:56.7]} 7. Nf4 {[%clk 0:02:58]} 7... Qc7 {[%clk 0:02:57.2]} 8. Ngh5 {[%clk
0:02:51.4]} 8... Nd7 {[%clk 0:02:49]} 9. Qf3 {[%clk 0:02:37.3]} 9... Bxc2 {[%clk
0:02:34.7]} 10. Bd2 {[%clk 0:02:22.9]} 10... Qb6 {[%clk 0:02:24]} 11. Bc3 {[%clk
0:02:14.5]} 11... Ngf6 {[%clk 0:02:17.8]} 12. Nxf6+ {[%clk 0:02:08.9]} 12...
Nxf6 {[%clk 0:02:17.3]} 13. Bc4 {[%clk 0:02:00.8]} 13... Be4 {[%clk 0:02:15.2]}
14. Qe2 {[%clk 0:01:53.6]} 14... Bd5 {[%clk 0:02:09.4]} 15. Bd3 {[%clk
0:01:50.4]} 15... Bd6 {[%clk 0:02:04]} 16. Nh5 {[%clk 0:01:43.4]} 16... Nxh5
{[%clk 0:01:59.4]} 17. Qxh5 {[%clk 0:01:44.3]} 17... g6 {[%clk 0:01:53.6]} 18.
Qg5 {[%clk 0:01:40.2]} 18... O-O {[%clk 0:01:48.7]} 19. O-O {[%clk 0:01:36.1]}
19... Qd8 {[%clk 0:01:47.4]} 20. Qh6 {[%clk 0:01:35.4]} 20... Qf6 {[%clk
0:01:42.9]} 21. h4 {[%clk 0:01:34.2]} 21... Qf4 {[%clk 0:01:39.5]} 22. Qxf4
{[%clk 0:01:33]} 22... Bxf4 {[%clk 0:01:40.4]} 23. g3 {[%clk 0:01:33.7]} 23...
Bh6 {[%clk 0:01:39.9]} 24. f4 {[%clk 0:01:31]} 24... Rfd8 {[%clk 0:01:39]} 25.
Kf2 {[%clk 0:01:30.7]} 25... Bg7 {[%clk 0:01:38]} 26. Ke3 {[%clk 0:01:30.8]}
26... Rac8 {[%clk 0:01:36.6]} 27. b4 {[%clk 0:01:31.1]} 27... Rd7 {[%clk
0:01:33.7]} 28. a4 {[%clk 0:01:29.5]} 28... Rcd8 {[%clk 0:01:32.9]} 29. Rfd1
{[%clk 0:01:28.3]} 29... Bb3 {[%clk 0:01:28.6]} 30. Rdb1 {[%clk 0:01:25]} 30...
Rxd4 {[%clk 0:01:22.8]} 31. Bxd4 {[%clk 0:01:14.9]} 31... Bxd4+ {[%clk
0:01:23.7]} 32. Ke2 {[%clk 0:01:07.6]} 32... Bxa1 {[%clk 0:01:23.9]} 33. Rxb3
{[%clk 0:01:07.1]} 33... Bd4 {[%clk 0:01:24.4]} 34. Be4 {[%clk 0:00:59.7]} 34...
Rd7 {[%clk 0:01:15.7]} 35. h5 {[%clk 0:00:59]} 35... Kg7 {[%clk 0:01:10.9]} 36.
hxg6 {[%clk 0:00:58.2]} 36... hxg6 {[%clk 0:01:10.3]} 37. Rd3 {[%clk 0:00:58.2]}
37... Kf6 {[%clk 0:01:04.5]} 38. g4 {[%clk 0:00:56.6]} 38... e5 {[%clk
0:01:02.9]} 39. fxe5+ {[%clk 0:00:47]} 39... Kxe5 {[%clk 0:01:02.5]} 40. Bg2
{[%clk 0:00:39.6]} 40... Rd8 {[%clk 0:01:01.6]} 41. b5 {[%clk 0:00:38]} 41... c5
{[%clk 0:00:59.5]} 42. Bxb7 {[%clk 0:00:37.5]} 42... c4 {[%clk 0:00:59.9]} 43.
Rf3 {[%clk 0:00:37.4]} 43... f5 {[%clk 0:00:59.9]} 44. gxf5 {[%clk 0:00:36.9]}
44... gxf5 {[%clk 0:01:00.8]} 45. Rh3 {[%clk 0:00:36]} 45... Rd7 {[%clk
0:00:58.3]} 46. Bc6 {[%clk 0:00:34.9]} 46... Rg7 {[%clk 0:00:55.8]} 47. a5
{[%clk 0:00:30.6]} 47... Rg1 {[%clk 0:00:51.7]} 48. Rh8 {[%clk 0:00:27.3]} 48...
Ra1 {[%clk 0:00:50.1]} 49. Re8+ {[%clk 0:00:24.9]} 49... Kf4 {[%clk 0:00:50]}
50. a6 {[%clk 0:00:19.6]} 50... Ra2+ {[%clk 0:00:48.2]} 51. Kd1 {[%clk
0:00:18.5]} 51... c3 {[%clk 0:00:48.8]} 52. Rd8 {[%clk 0:00:17.4]} 52... Be3
{[%clk 0:00:47.4]} 0-1

[Event "*** Titled Tuesday Blitz"]
[Site "Chess.com"]
[Date "2020.04.28"]
[Round "2"]
[White "kuba2006"]
[Black "Blagorod"]
[Result "1-0"]
[WhiteElo "2414"]
[BlackElo "2129"]
[TimeControl "180+1"]
[EndTime "10:18:14 PDT"]
[Termination "kuba2006 won on time"]

1. e4 {[%clk 0:03:00.9]} 1... e5 {[%clk 0:02:59.1]} 2. Nf3 {[%clk 0:03:00.1]}
2... Nf6 {[%clk 0:02:59.1]} 3. Nc3 {[%clk 0:02:55.3]} 3... Bb4 {[%clk
0:02:58.4]} 4. Nxe5 {[%clk 0:02:53.3]} 4... O-O {[%clk 0:02:57]} 5. Be2 {[%clk
0:02:49.9]} 5... d6 {[%clk 0:02:49]} 6. Nd3 {[%clk 0:02:48.4]} 6... Bxc3 {[%clk
0:02:48.9]} 7. dxc3 {[%clk 0:02:48.6]} 7... Nxe4 {[%clk 0:02:49.5]} 8. O-O
{[%clk 0:02:48.1]} 8... Nd7 {[%clk 0:02:44.2]} 9. Bf3 {[%clk 0:02:47.1]} 9...
Ng5 {[%clk 0:02:37]} 10. Bxg5 {[%clk 0:02:27.9]} 10... Qxg5 {[%clk 0:02:36.1]}
11. g3 {[%clk 0:02:27.9]} 11... Ne5 {[%clk 0:02:31.5]} 12. Nxe5 {[%clk 0:02:22]}
12... Qxe5 {[%clk 0:02:30.7]} 13. Re1 {[%clk 0:02:20.8]} 13... Qb5 {[%clk
0:02:26.6]} 14. Qd3 {[%clk 0:02:12]} 14... Qxd3 {[%clk 0:02:21.2]} 15. cxd3
{[%clk 0:02:11.5]} 15... c6 {[%clk 0:02:21.2]} 16. Re7 {[%clk 0:02:10.9]} 16...
Rb8 {[%clk 0:02:15.4]} 17. a4 {[%clk 0:01:55.2]} 17... Be6 {[%clk 0:02:11.5]}
18. a5 {[%clk 0:01:55]} 18... a6 {[%clk 0:02:11.1]} 19. Ra4 {[%clk 0:01:51.8]}
19... Rfc8 {[%clk 0:02:07.3]} 20. Rb4 {[%clk 0:01:49.3]} 20... Bh3 {[%clk
0:01:36.5]} 21. Bg2 {[%clk 0:01:10.6]} 21... Bxg2 {[%clk 0:01:33.9]} 22. Kxg2
{[%clk 0:01:11.5]} 22... b5 {[%clk 0:01:33.4]} 23. axb6 {[%clk 0:01:10.7]} 23...
a5 {[%clk 0:01:32.8]} 24. Rb3 {[%clk 0:01:09.2]} 24... a4 {[%clk 0:01:25.6]} 25.
Rb4 {[%clk 0:01:06.6]} 25... c5 {[%clk 0:01:24.8]} 26. b7 {[%clk 0:00:55.5]}
26... cxb4 {[%clk 0:01:08.2]} 27. bxc8=Q+ {[%clk 0:00:54.2]} 27... Rxc8 {[%clk
0:01:08.2]} 28. cxb4 {[%clk 0:00:54.5]} 28... Kf8 {[%clk 0:00:56]} 29. Ra7
{[%clk 0:00:53.7]} 29... Rc2 {[%clk 0:00:53.8]} 30. Rxa4 {[%clk 0:00:52.6]}
30... Rxb2 {[%clk 0:00:54]} 31. Kf3 {[%clk 0:00:48.4]} 31... Ke7 {[%clk
0:00:50.6]} 32. Ra7+ {[%clk 0:00:45.6]} 32... Ke6 {[%clk 0:00:46.2]} 33. Rb7
{[%clk 0:00:45.7]} 33... g6 {[%clk 0:00:34.4]} 34. h4 {[%clk 0:00:44.8]} 34...
h5 {[%clk 0:00:34.1]} 35. Ke3 {[%clk 0:00:44.3]} 35... f6 {[%clk 0:00:30.5]} 36.
b5 {[%clk 0:00:43.6]} 36... g5 {[%clk 0:00:17.9]} 37. b6 {[%clk 0:00:42.4]}
37... gxh4 {[%clk 0:00:16.8]} 38. gxh4 {[%clk 0:00:43.3]} 38... Kd5 {[%clk
0:00:15.1]} 39. Rb8 {[%clk 0:00:35.6]} 39... Kc6 {[%clk 0:00:12.7]} 40. Rh8
{[%clk 0:00:33.4]} 40... Kxb6 {[%clk 0:00:09.7]} 41. Rxh5 {[%clk 0:00:33]} 41...
Rb1 {[%clk 0:00:10]} 42. Rf5 {[%clk 0:00:31.2]} 42... Re1+ {[%clk 0:00:09.6]}
43. Kd4 {[%clk 0:00:30.5]} 43... Rh1 {[%clk 0:00:09.3]} 44. h5 {[%clk
0:00:30.4]} 44... Kc6 {[%clk 0:00:07.7]} 45. Ke4 {[%clk 0:00:29.2]} 45... Rh4+
{[%clk 0:00:06.7]} 46. f4 {[%clk 0:00:28.7]} 46... Rh1 {[%clk 0:00:06.1]} 47.
Ra5 {[%clk 0:00:27.9]} 1-0

[Event "*** Titled Tuesday Blitz"]
[Site "Chess.com"]
[Date "2020.04.28"]
[Round "2"]
[White "Kaponov"]
[Black "kakakz"]
[Result "0-1"]
[WhiteElo "2102"]
[BlackElo "2398"]
[TimeControl "180+1"]
[EndTime "10:18:14 PDT"]
[Termination "kakakz won on time"]

1. d4 {[%clk 0:03:00.9]} 1... Nf6 {[%clk 0:02:59.3]} 2. c4 {[%clk 0:03:01.5]}
2... g6 {[%clk 0:02:59.6]} 3. Nc3 {[%clk 0:03:01.6]} 3... Bg7 {[%clk 0:03:00]}
4. e4 {[%clk 0:03:02.2]} 4... d6 {[%clk 0:03:00.9]} 5. Nf3 {[%clk 0:03:02.5]}
5... O-O {[%clk 0:03:00.9]} 6. g3 {[%clk 0:03:02.7]} 6... e5 {[%clk 0:03:01]} 7.
Bg2 {[%clk 0:02:54.3]} 7... Nc6 {[%clk 0:02:57.7]} 8. d5 {[%clk 0:02:33.6]} 8...
Ne7 {[%clk 0:02:46.1]} 9. O-O {[%clk 0:02:30.3]} 9... Nd7 {[%clk 0:02:44.3]} 10.
Rb1 {[%clk 0:02:20.1]} 10... a5 {[%clk 0:02:41.8]} 11. a3 {[%clk 0:02:19.1]}
11... Nb6 {[%clk 0:02:26.7]} 12. b3 {[%clk 0:02:15.4]} 12... h6 {[%clk
0:02:02.2]} 13. Qe2 {[%clk 0:01:46.5]} 13... f5 {[%clk 0:01:55]} 14. b4 {[%clk
0:01:46.7]} 14... axb4 {[%clk 0:01:48]} 15. axb4 {[%clk 0:01:46.7]} 15... Nd7
{[%clk 0:01:48.9]} 16. Nd2 {[%clk 0:01:29]} 16... b6 {[%clk 0:01:46.1]} 17. Nb3
{[%clk 0:01:28.8]} 17... f4 {[%clk 0:01:30.7]} 18. Bb2 {[%clk 0:01:04.1]} 18...
g5 {[%clk 0:01:12.3]} 19. Ra1 {[%clk 0:00:58.7]} 19... Ba6 {[%clk 0:01:04.2]}
20. Bh3 {[%clk 0:00:51.6]} 20... Nf6 {[%clk 0:01:01.3]} 21. Be6+ {[%clk
0:00:50.7]} 21... Kh8 {[%clk 0:01:01.1]} 22. f3 {[%clk 0:00:49.4]} 22... fxg3
{[%clk 0:00:52.6]} 23. hxg3 {[%clk 0:00:49.3]} 23... h5 {[%clk 0:00:50.9]} 24.
Rf2 {[%clk 0:00:30.3]} 24... Ng6 {[%clk 0:00:48.9]} 25. Bf5 {[%clk 0:00:26.6]}
25... Ne7 {[%clk 0:00:46]} 26. Be6 {[%clk 0:00:25.2]} 26... Bh6 {[%clk
0:00:45.7]} 27. Rh2 {[%clk 0:00:23.4]} 27... Kg7 {[%clk 0:00:45.5]} 28. Nc1
{[%clk 0:00:08.2]} 28... Ng6 {[%clk 0:00:39.9]} 29. Nd3 {[%clk 0:00:07.6]} 29...
Bxc4 {[%clk 0:00:38.2]} 30. Qc2 {[%clk 0:00:03.2]} 30... Rxa1+ {[%clk
0:00:36.6]} 31. Bxa1 {[%clk 0:00:03.4]} 31... Qa8 {[%clk 0:00:32.9]} 32. Bb2
{[%clk 0:00:03.4]} 32... Qa6 {[%clk 0:00:33.1]} 33. Nc1 {[%clk 0:00:02.4]} 33...
h4 {[%clk 0:00:29.2]} 34. gxh4 {[%clk 0:00:01.2]} 34... Nxh4 {[%clk 0:00:29]}
35. Rxh4 {[%clk 0:00:01.3]} 35... gxh4 {[%clk 0:00:29]} 36. Qg2+ {[%clk
0:00:01.9]} 36... Kh8 {[%clk 0:00:23.3]} 37. Qg6 {[%clk 0:00:02.2]} 37... Ng8
{[%clk 0:00:23.5]} 0-1

[Event "*** Titled Tuesday Blitz"]
[Site "Chess.com"]
[Date "2020.04.28"]
[Round "2"]
[White "GM4life"]
[Black "Sven_Tica"]
[Result "0-1"]
[WhiteElo "2180"]
[BlackElo "2615"]
[TimeControl "180+1"]
[EndTime "10:18:17 PDT"]
[Termination "Sven_Tica won by checkmate"]

1. e4 {[%clk 0:03:00.9]} 1... c5 {[%clk 0:03:00.2]} 2. Nf3 {[%clk 0:03:00]} 2...
Nf6 {[%clk 0:03:00.9]} 3. e5 {[%clk 0:02:58]} 3... Nd5 {[%clk 0:03:01.6]} 4. Nc3
{[%clk 0:02:57.3]} 4... e6 {[%clk 0:03:02.2]} 5. Bc4 {[%clk 0:02:55.6]} 5... Nb6
{[%clk 0:02:48.8]} 6. Be2 {[%clk 0:02:50.5]} 6... Nc6 {[%clk 0:02:48.5]} 7. O-O
{[%clk 0:02:38.4]} 7... Qc7 {[%clk 0:02:39.1]} 8. Nb5 {[%clk 0:02:19.8]} 8...
Qb8 {[%clk 0:02:37.6]} 9. d4 {[%clk 0:02:18.1]} 9... cxd4 {[%clk 0:02:30.1]} 10.
Bf4 {[%clk 0:02:13.7]} 10... Nd5 {[%clk 0:02:26]} 11. Bg3 {[%clk 0:02:13]} 11...
a6 {[%clk 0:02:16.1]} 12. Nbxd4 {[%clk 0:02:06.5]} 12... b5 {[%clk 0:02:16.5]}
13. a4 {[%clk 0:01:56.4]} 13... b4 {[%clk 0:02:12.7]} 14. Qd2 {[%clk 0:01:42.2]}
14... Qb6 {[%clk 0:02:02.7]} 15. c4 {[%clk 0:01:32.4]} 15... bxc3 {[%clk
0:01:56.9]} 16. bxc3 {[%clk 0:01:32.3]} 16... Bc5 {[%clk 0:01:53.7]} 17. Rab1
{[%clk 0:01:17.5]} 17... Qc7 {[%clk 0:01:41.9]} 18. c4 {[%clk 0:01:12.6]} 18...
Nde7 {[%clk 0:01:40.3]} 19. Rfd1 {[%clk 0:01:05.7]} 19... Bb7 {[%clk 0:01:32.6]}
20. Qg5 {[%clk 0:01:00.3]} 20... Ng6 {[%clk 0:01:29.9]} 21. h4 {[%clk
0:00:49.4]} 21... h5 {[%clk 0:01:21.5]} 22. Nxc6 {[%clk 0:00:38.8]} 22... Bxc6
{[%clk 0:01:14.5]} 23. Bd3 {[%clk 0:00:28.3]} 23... Be7 {[%clk 0:01:01]} 24. Qe3
{[%clk 0:00:25.9]} 24... Rh6 {[%clk 0:00:53.6]} 25. Ng5 {[%clk 0:00:22]} 25...
Bxa4 {[%clk 0:00:49.1]} 26. Rd2 {[%clk 0:00:22.2]} 26... Bc5 {[%clk 0:00:46.9]}
27. Qe2 {[%clk 0:00:21.5]} 27... Bc6 {[%clk 0:00:42]} 28. Bxg6 {[%clk
0:00:20.5]} 28... Rxg6 {[%clk 0:00:23.3]} 29. Qxh5 {[%clk 0:00:19.7]} 29... Rb8
{[%clk 0:00:23]} 30. Qh8+ {[%clk 0:00:18.8]} 30... Bf8 {[%clk 0:00:22.6]} 31.
Rxb8+ {[%clk 0:00:17.4]} 31... Qxb8 {[%clk 0:00:23.5]} 32. Nh7 {[%clk
0:00:16.5]} 32... Ke7 {[%clk 0:00:12.7]} 33. Rb2 {[%clk 0:00:16.7]} 33... Qc8
{[%clk 0:00:11]} 34. Bf4 {[%clk 0:00:16.8]} 34... f6 {[%clk 0:00:10.4]} 35.
exf6+ {[%clk 0:00:16.3]} 35... gxf6 {[%clk 0:00:11.3]} 36. Nxf8 {[%clk
0:00:15.3]} 36... Rxg2+ {[%clk 0:00:11.2]} 37. Kf1 {[%clk 0:00:14.6]} 37... Kf7
{[%clk 0:00:08.5]} 38. Bd6 {[%clk 0:00:12.7]} 38... Bf3 {[%clk 0:00:06]} 39.
Qh5+ {[%clk 0:00:12.8]} 39... Bxh5 {[%clk 0:00:05.7]} 40. c5 {[%clk 0:00:12]}
40... Qc6 {[%clk 0:00:04.4]} 41. Rb6 {[%clk 0:00:10.1]} 41... Qe4 {[%clk
0:00:04.6]} 42. Nxd7 {[%clk 0:00:09.7]} 42... Be2+ {[%clk 0:00:04.3]} 43. Ke1
{[%clk 0:00:09]} 43... Rg1+ {[%clk 0:00:04.2]} 44. Kd2 {[%clk 0:00:08.8]} 44...
Qd3# {[%clk 0:00:04.9]} 0-1

[Event "*** Titled Tuesday Blitz"]
[Site "Chess.com"]
[Date "2020.04.28"]
[Round "2"]
[White "GMSrinath"]
[Black "CSB7"]
[Result "1-0"]
[WhiteElo "2741"]
[BlackElo "2499"]
[TimeControl "180+1"]
[EndTime "10:18:18 PDT"]
[Termination "GMSrinath won by resignation"]

1. e4 {[%clk 0:02:58]} 1... e5 {[%clk 0:02:59.3]} 2. Nf3 {[%clk 0:02:57.8]} 2...
Nc6 {[%clk 0:02:59.8]} 3. Bb5 {[%clk 0:02:58.2]} 3... Nf6 {[%clk 0:03:00]} 4. d3
{[%clk 0:02:57.2]} 4... Bc5 {[%clk 0:02:58.5]} 5. Bxc6 {[%clk 0:02:57.4]} 5...
dxc6 {[%clk 0:02:57.9]} 6. Nbd2 {[%clk 0:02:58]} 6... Be6 {[%clk 0:02:56.7]} 7.
Qe2 {[%clk 0:02:57.7]} 7... Nd7 {[%clk 0:02:51.5]} 8. Nb3 {[%clk 0:02:55.4]}
8... Bb6 {[%clk 0:02:49.1]} 9. Ng5 {[%clk 0:02:55.9]} 9... Bxb3 {[%clk
0:02:48.5]} 10. axb3 {[%clk 0:02:56.8]} 10... f6 {[%clk 0:02:47.7]} 11. Nh3
{[%clk 0:02:51.8]} 11... Qe7 {[%clk 0:02:40.5]} 12. f4 {[%clk 0:02:51.7]} 12...
O-O-O {[%clk 0:02:27.6]} 13. Be3 {[%clk 0:02:47.4]} 13... Kb8 {[%clk 0:02:20.3]}
14. O-O {[%clk 0:02:39.7]} 14... Nc5 {[%clk 0:02:03.6]} 15. b4 {[%clk
0:02:23.1]} 15... Ne6 {[%clk 0:01:58.7]} 16. fxe5 {[%clk 0:02:19.7]} 16... Nd4
{[%clk 0:01:20.7]} 17. Qf2 {[%clk 0:01:53.7]} 17... Qxe5 {[%clk 0:01:19.2]} 18.
c3 {[%clk 0:01:48.7]} 18... Ne6 {[%clk 0:01:12.6]} 19. Rad1 {[%clk 0:01:41.4]}
19... Rhe8 {[%clk 0:00:58.5]} 20. Bxb6 {[%clk 0:01:20.6]} 20... cxb6 {[%clk
0:00:41.7]} 21. Qh4 {[%clk 0:01:20.6]} 21... h6 {[%clk 0:00:38.7]} 22. d4 {[%clk
0:01:20.2]} 22... Qc7 {[%clk 0:00:38.3]} 23. Qg4 {[%clk 0:01:18.9]} 23... Ng5
{[%clk 0:00:37]} 24. Nxg5 {[%clk 0:01:18.2]} 24... hxg5 {[%clk 0:00:37.9]} 25.
Rfe1 {[%clk 0:01:18.3]} 25... c5 {[%clk 0:00:35.2]} 26. bxc5 {[%clk 0:01:15.9]}
26... bxc5 {[%clk 0:00:36.1]} 27. d5 {[%clk 0:01:16.7]} 27... Re5 {[%clk
0:00:32.9]} 28. c4 {[%clk 0:00:57.4]} 28... Qd6 {[%clk 0:00:24.7]} 29. Qg3
{[%clk 0:00:54.9]} 29... Rde8 {[%clk 0:00:20.6]} 30. Rf1 {[%clk 0:00:54.9]}
30... Kc7 {[%clk 0:00:19.4]} 31. Qa3 {[%clk 0:00:45.4]} 31... a6 {[%clk
0:00:17.8]} 32. Qa5+ {[%clk 0:00:45.2]} 32... Kb8 {[%clk 0:00:15.1]} 33. b4
{[%clk 0:00:45.8]} 33... cxb4 {[%clk 0:00:13.9]} 34. c5 {[%clk 0:00:46.2]} 34...
Qc7 {[%clk 0:00:14.1]} 35. Qxb4 {[%clk 0:00:36]} 35... Rxe4 {[%clk 0:00:14.5]}
36. Qc3 {[%clk 0:00:36.3]} 36... Re3 {[%clk 0:00:14.4]} 37. Qc1 {[%clk
0:00:35.4]} 37... R3e5 {[%clk 0:00:11.7]} 38. c6 {[%clk 0:00:32.7]} 38... Rc8
{[%clk 0:00:07]} 39. Qb2 {[%clk 0:00:27.7]} 39... Ka7 {[%clk 0:00:07]} 40. Rb1
{[%clk 0:00:24.3]} 40... bxc6 {[%clk 0:00:05.5]} 41. d6 {[%clk 0:00:13.9]} 41...
Qd7 {[%clk 0:00:04.1]} 42. Qb6+ {[%clk 0:00:14]} 42... Ka8 {[%clk 0:00:03.9]}
43. Qxa6+ {[%clk 0:00:14.9]} 1-0